{"text_format":"1","workbook":"xlsx","n_sheets":4,"sheets":["Report Form","ACL's","Quick Links","CDSS USE ONLY"],"not_rendered":{"charts":0,"images":5,"macros":1,"external_links":0,"defined_names":7,"comments":0,"pivot_tables":0},"unopened":[],"bounds":{"document_bytes":16777216,"sheet_cells":100000,"rows_first":2000,"rows_last":500,"rows_between":2000,"halvings":0,"cell_chars":16384,"cell_head_chars":4096},"cells_cut":0,"cells_raw":0,"read":"whole","date_system":"1900"}

{"sheet":"Report Form","index":0,"n_rows":67,"n_cols":45,"rows_kept":67,"cut":false,"hidden":false,"merged":[[52,15,52,16],[52,7,52,8],[52,9,52,10],[49,23,49,24],[64,19,64,24],[63,2,63,9],[64,2,64,9],[63,10,63,15],[64,10,64,18],[63,16,63,18],[63,19,63,24],[60,2,60,24],[59,2,59,24],[62,2,62,24],[61,2,61,24],[2,3,2,14],[3,3,3,14],[4,15,4,22],[51,7,51,12],[51,13,51,18],[9,19,12,22],[13,19,13,20],[2,15,2,22],[3,15,3,22],[33,13,33,14],[33,15,33,16],[32,19,33,24],[9,3,9,18],[10,4,10,18],[11,3,11,18],[12,4,12,18],[18,5,18,18],[16,5,16,18],[17,5,17,18],[15,4,15,18],[44,4,44,14],[42,15,42,18],[42,13,42,14],[49,19,49,20],[4,3,4,14],[5,2,5,22],[8,2,8,18],[27,21,27,22],[26,4,26,18],[25,5,25,18],[57,2,57,12],[58,2,58,12],[57,13,57,24],[58,13,58,24],[54,4,54,6],[52,17,52,18],[49,21,49,22],[42,5,42,12],[56,2,56,24],[42,19,43,24],[45,4,45,14],[43,15,43,16],[48,3,48,18],[50,3,50,18],[55,3,55,18],[53,4,53,6],[52,11,52,12],[52,13,52,14],[40,3,40,18],[13,21,13,22],[32,7,32,12],[8,19,8,22],[7,2,7,10],[6,2,6,10],[6,15,6,20],[7,15,7,20],[7,21,7,24],[13,23,13,24],[23,5,23,18],[24,5,24,18],[30,4,30,18],[8,23,8,24],[6,11,6,14],[7,11,7,14],[20,23,20,24],[27,23,27,24],[21,3,21,18],[19,4,19,18],[14,5,14,18],[27,19,27,20],[33,11,33,12],[39,19,39,24],[41,4,41,18],[43,17,43,18],[27,2,27,18],[49,2,49,18],[20,21,20,22],[28,3,28,18],[20,19,20,20],[39,3,39,18],[20,2,20,18],[29,4,29,18],[37,4,37,18],[38,4,38,18],[46,3,46,18],[47,4,47,18],[43,5,43,12],[31,3,31,18],[34,4,34,6],[35,4,35,18],[36,4,36,18],[33,17,33,18],[32,13,32,18],[33,7,33,8],[33,9,33,10],[22,4,22,18]]}
[0]
[]
[null,null,null,"CALFRESH MONTHLY CASELOAD MOVEMENT"]
[null,null,null,"STATISTICAL REPORT"]
[null,null,null,"CF 296"]
[]
[]
[null,null,{"$f":"AC8","v":"Select County Name"},null,null,null,null,null,null,null,null,{"$f":"AC9","v":"Initial"},null,null,null,{"$f":"AC10","v":"Report Month"},null,null,null,null,null,{"$f":"AC11","v":"Report Year"},null,null,null,null,null,null,"Select County Name","Select County Name",null,"Report Month","Report Year"]
[null,null,"PART A.  APPLICATIONS FOR CALFRESH",null,null,null,null,null,null,null,null,null,null,null,null,null,null,null,null,null,null,null,null,"TOTAL",null,null,null,null,{"$f":"IF(AC12=1,\"Initial\",\"Revised\")","v":"Initial"},"01 Alameda",1,"January",2016]
[null,null,"1.  ","Applications received during the month…………………………………………………...………………………………………………………………………...………………………………...……………………………………………………………………………..………………………………………………………………………………………....……………………...………………………………...……………………………………………………………………………..………………………………………………………………………………………....",null,null,null,null,null,null,null,null,null,null,null,null,null,null,null,null,null,null,null,1,null,null,null,null,"Report Month","02 Alpine",2,"February",2017]
[null,null,null,"a.  ","Online applications received during the month………………………………………………………………………………………………...…………..……………………………………………………………………………………….…………………………...……………………………………………………………………………..………………………………………………………………………………………....…………………………………",null,null,null,null,null,null,null,null,null,null,null,null,null,null,null,null,null,null,2,null,null,null,null,"Report Year","03 Amador",3,"March",2018]
[null,null,"2.  ","Applications disposed of during the month (Sum of Items 2a, 2b and 2c)………………………..……………………………………………………………………………………….………..……………………………………………………………………………………….……………………...……………………………………………………...……………………………………",null,null,null,null,null,null,null,null,null,null,null,null,null,null,null,null,null,null,null,3,{"$f":"SUM(Y13,Y16,Y20)","v":0},null,null,null,1,"04 Butte",4,"April",2019]
[null,null,null,"a.","Applications approved (Same as Item 5a/Cell 61) ……………………………………………………………………………………..……………………………………………………………………………………….………………………………………………………………………………………………………………...………………………………………………………………………………..",null,null,null,null,null,null,null,null,null,null,null,null,null,null,null,null,null,null,4,null,null,null,null," ","05 Calaveras",5,"May",2020]
[null,null,null,null,null,null,null,null,null,null,null,null,null,null,null,null,null,null,null,"PACF (A)",null,"NACF (B)",null,"TOTAL (C)",null,null,null,null," ","06 Colusa",6,"June",2021]
[null,null,null,null,"1)","Applications approved in over 30 days (CWD caused) ………………..……………………………………………………………………………………….………..……………………………………………………………………………………….………………..……………………………………………………………………………………………………………………………………………………………………………………...…..",null,null,null,null,null,null,null,null,null,null,null,null,null,5,null,6,null,7,{"$f":"SUM(U15,W15)","v":0},null,null,null,null,"07 Contra Costa",7,"July",2022]
[null,null,null,"b.","Applications denied (Item 2b1 plus Item 2b2) ………………..……………………………………………………………………………………….………..……………………………………………………………………………………….………………………………………………………………………………………………………………………………………………………………………………………………...……………..….",null,null,null,null,null,null,null,null,null,null,null,null,null,null,8,{"$f":"SUM(U17,U18)","v":0},9,{"$f":"SUM(W17,W18)","v":0},10,{"$f":"SUM(U16,W16)","v":0},null,null,null,null,"08 Del Norte",8,"August",2023]
[null,null,null,null,"1)","Applications denied because determined ineligible…………………..……………………………………………………………………………………….………..……………………………………………………………………………………….………..……………………………………………………………………………………….………………………………………………………………………………………………",null,null,null,null,null,null,null,null,null,null,null,null,null,11,null,12,null,13,{"$f":"SUM(U17,W17)","v":0},null,null,null,null,"09 El Dorado",9,"September"]
[null,null,null,null,"2)","Applications denied for procedural reasons………………..……………………………………………………………………………………….………..……………………………………………………………………………………….………..……………………………………………………………………………………….………………………………………………………………………………………………………………………………………..",null,null,null,null,null,null,null,null,null,null,null,null,null,14,null,15,null,16,{"$f":"SUM(U18,W18)","v":0},null,null,null,null,"10 Fresno",10,"October"]
[null,null,null,null,"3)","Applications denied in over 30 days (CWD caused)……………………..……………………………………………………………………………………….………..……………………………………………………………………………………….………………………………………………………………………………………………………………………………………………………………………………………………....",null,null,null,null,null,null,null,null,null,null,null,null,null,17,null,18,null,19,{"$f":"SUM(U19,W19)","v":0},null,null,null,null,"11 Glenn",11,"November"]
[null,null,null,"c.","Applications withdrawn…………………..……………………………………………………………………………………….………..……………………………………………………………………………………….………..……………………………………………………………………………………….………………………………………………………………………….………………………………………………………………………………………………………………………………………………………………...……",null,null,null,null,null,null,null,null,null,null,null,null,null,null,20,null,21,null,22,{"$f":"SUM(W20,U20)","v":0},null,null,null,null,"12 Humboldt",12,"December"]
[null,null,"PART B.  APPLICATIONS PROCESSED UNDER EXPEDITED SERVICES (ES)",null,null,null,null,null,null,null,null,null,null,null,null,null,null,null,null,"PACF (A)",null,"NACF (B)",null,"TOTAL (C)",null,null,null,null,null,"13 Imperial",13]
[null,null,"3.","Of the applications from Item 1, applications processed under ES disposed of during the month (Item 3a plus Item 3b)…………..……………………………………………………………………………………….………..……………………………………………………………………………………….………..……………………………………………………………………………………….…………….…",null,null,null,null,null,null,null,null,null,null,null,null,null,null,null,23,{"$f":"SUM(U23,U27)","v":0},24,{"$f":"SUM(W23,W27)","v":0},25,{"$f":"SUM(U22,W22)","v":0},null,null,null,null,"14 Inyo",14]
[null,null,null,"a. "," Found entitled to ES (Sum of Items 3a1 through 3a3)……………………………………………..……………………………………………………………………………………….………..……………………………………………………………………………………….………..……………………………………………………………………………………….……………..……………………………………………………",null,null,null,null,null,null,null,null,null,null,null,null,null,null,26,{"$f":"SUM(U24:U26)","v":0},27,{"$f":"SUM(W24:W26)","v":0},28,0,null,null,null,null,"15 Kern",15]
[null,null,null,null,"1)  ","Benefits issued in 1-3 days……………………………………………………………………………………………………..………………...……………………………………………………………………..………………...……………………………………………………………………..………………...……………………………………………………………………..………………...…………………………..………………...…………………………",null,null,null,null,null,null,null,null,null,null,null,null,null,29,null,30,null,31,0,null,null,null,null,"16 Kings",16]
[null,null,null,null,"2)  ","Benefits issued in 4-7 days…………………………………………………………..………………...……………………………………………………………………..………………...……………………………………………………………………..………………...……………………………………………………………………..………………...………………………………………………...………………………….…………………...…………………………",null,null,null,null,null,null,null,null,null,null,null,null,null,32,null,33,null,34,0,null,null,null,null,"17 Lake",17]
[null,null,null,null,"3)  ","Benefits issued in over 7 days…………………………………………………………..………………...……………………………………………………………………..………………...……………………………………………………………………..………………...…………………………………………………..…………………………..………………………………………….….…..",null,null,null,null,null,null,null,null,null,null,null,null,null,35,null,36,null,37,0,null,null,null,null,"18 Lassen",18]
[null,null,null,"b. ","Found not entitled to ES…………………………………………………………..………………...……………………………………………………………………..………………...……………………………………………………………………..………………...……………………………………………………………………..………………...……………………………………………………………………..………………...…………………………………………………………………………………………………………………………..….",null,null,null,null,null,null,null,null,null,null,null,null,null,null,38,null,39,null,40,0,null,null,null,null,"19 Los Angeles",19]
[null,null,"PART C.  CERTIFIED CASELOAD MOVEMENT",null,null,null,null,null,null,null,null,null,null,null,null,null,null,null,null,"PACF (A)",null,"NACF (B)",null,"TOTAL (C)",null,null,null,null,null,"20 Madera",20]
[null,null,"4.","Cases brought forward at the beginning of the month……………………..…………………………………………..………………...……………………………………………………………………..………………...……………………………………………………………………..………………...…………………………………..………………………………………………………………………………………...…………………...………………..",null,null,null,null,null,null,null,null,null,null,null,null,null,null,null,41,null,42,null,43,{"$f":"SUM(W29,U29)","v":0},null,null,null,null,"21 Marin",21]
[null,null,null,"a. ","Item 8 from last month's report, as reported to CDSS………………………………………………………..………………...……………………………………………………………………..………………...……………………………………………………………………..………………...………………………………………….……………………………………………………………………………………………………………..………..",null,null,null,null,null,null,null,null,null,null,null,null,null,null,44,null,45,null,46,{"$f":"SUM(U30,W30)","v":0},null,null,null,null,"22 Mariposa",22]
[null,null,null,"b. ","Adjustment (Item 4 minus Item 4a, positive or negative number, explain in the Item 4b Adjustment Explanation box)…………………………………………………..………………...……………………………………………………………………..………………...……………………………………………………………………..………………...…………………………………………………………………………………………………….",null,null,null,null,null,null,null,null,null,null,null,null,null,null,47,{"$f":"SUM(U29,-U30)","v":0},48,{"$f":"SUM(W29,-W30)","v":0},49,{"$f":"SUM(W31,U31)","v":0},null,null,null,null,"23 Mendocino",23]
[null,null,"5.","Cases added during the month (Sum of Items 5a through 5e, positive or negative number)………………………………………………………..………………...……………………………………………………………………..………………...……………………………………………………………………..………………...…………………………………………………………………………………………………………..",null,null,null,null,null,null,null,null,null,null,null,null,null,null,null,50,{"$f":"SUM(U35:U39)","v":0},51,{"$f":"SUM(W35:W39)","v":0},52,{"$f":"SUM(U32,W32)","v":0},null,null,null,null,"24 Merced",24]
[null,null,null,null,null,null,null,"PACF",null,null,null,null,null,"NACF",null,null,null,null,null,null,null,null,null,null,null,null,null,null,null,"25 Modoc",25]
[null,null,null,null,null,null,null,"Federal",null,"Fed/State",null,"State",null,"Federal",null,"Fed/State",null,"State",null,null,null,null,null,null,null,null,null,null,null,"26 Mono",26]
[null,null,null,"a.","Applications approved………………………………………………………………………………………………………………………………………………………………………………………………………………………………………………………………………...…………..……………………………………………………………………………………………………………………………………………………………...…………..",null,null,53,null,54,null,55,null,56,null,57,null,58,null,59,{"$f":"SUM(I35,K35,M35)","v":0},60,{"$f":"SUM(O35,Q35,S35)","v":0},61,{"$f":"SUM(U35,W35)","v":0},null,null,null,null,"27 Monterey",27]
[null,null,null,"b.","Change in assistance status from PACF or NACF………………………………………………………………………………………………………………………………………………………………………………………………………………………...…………..…………………………………………………………………………………………………………………………………………………………………………………………………………………...…………..………………...…………………………………………………………………………….",null,null,null,null,null,null,null,null,null,null,null,null,null,null,62,null,63,null,64,{"$f":"U36+W36","v":0},null,null,null,null,"28 Napa",28]
[null,null,null,"c.  ","Inter-County Transfers ………………………………………………………………………………………………………………………………………………………………………………………………………………………………………………………...…………..……………………………………………………………………………………………………………………………………………………………………………………………………………...…………..………………………………………………………………...……….",null,null,null,null,null,null,null,null,null,null,null,null,null,null,65,null,66,null,67,{"$f":"SUM(W37,U37)","v":0},null,null,null,null,"29 Nevada",29]
[null,null,null,"d.","Cases with eligibility reinstated and benefits pro-rated during the month……………………………………………………………………………………………………………………………………………………………………………………………………………………...…………..……………………………………………………………………………………………………………………………………………………………………………………………………………...…………..………………………………………………………………………..",null,null,null,null,null,null,null,null,null,null,null,null,null,null,68,null,69,null,70,{"$f":"SUM(W38,U38)","v":0},null,null,null,null,"30 Orange",30]
[null,null,null,"e.","Other approvals……………………………………………………………………………………………………………………………………………………………………………………………………………………………………………………...…………..………………………………………………………………………………………………………………………………………………………….……………..….",null,null,null,null,null,null,null,null,null,null,null,null,null,null,71,null,72,null,73,{"$f":"SUM(W39,U39)","v":0},null,null,null,null,"31 Placer",31]
[null,null,"6.  ","Total cases open during the month (Certified eligible to participate during the month)",null,null,null,null,null,null,null,null,null,null,null,null,null,null,null,null,null,null,null,null,null,null,null,null,null,"32 Plumas",32]
[null,null,null,"(Item 4 plus Item 5; also sum of Items 6a through 6c)…………………………………………………………………………………………………………………………………………………………………………………………………………………………………………………………………………………………………………………………...…………………………………….………………………………..",null,null,null,null,null,null,null,null,null,null,null,null,null,null,null,74,{"$f":"SUM(U42,U45,U46)","v":0},75,{"$f":"SUM(W42,W45,W46)","v":0},76,{"$f":"SUM(W41,U41)","v":0},null,null,null,null,"33 Riverside",33,null,null,null,null,null,null,null,null,null,null,null,null,null," "]
[null,null,null,"a.","Pure federal cases………………………………………………………………………………………………………………………………………………………………………………………………………………………………………………………………………………………………………………………………………………………………………………………………………………………………………………….…….……………….",null,null,null,null,null,null,null,null,null,null,null,null,null,null,77,null,78,null,79,{"$f":"SUM(W42,U42)","v":0},null,null,null,null,"34 Sacramento",34]
[null,null,null,null,"1)","Federal persons in Item 6a cases",null,null,null,null,null,null,null,"Federal Persons",null,"State Persons",null,null,null,null,null,null,null,null,null,null,null,null,null,"35 San Benito",35]
[null,null,null,null,null,"plus federal persons in Item 6b cases……………………………………………………………………………………………………………………………………………………………………………………………………………………………………………………………………………………………………………………………………………………………………………………………………………………………………….……",null,null,null,null,null,null,null,80,null,"Singles",null,"Families",null,null,null,null,null,null,null,null,null,null,null,"36 San Bernardino",36]
[null,null,null,"b.","Federal/State combined cases…………………………………………………………………….……………………………………………………………………",null,null,null,null,null,null,null,null,null,null,81,null,82,null,83,null,84,null,85,{"$f":"SUM(U45,W45)","v":0},null,null,null,null,"37 San Diego",37]
[null,null,null,"c.","Pure state cases……………………………………………………………………………………………………………………………………………………………………………………………………………………………………………………………………………………………...……………………………………………………………………………………………………………………………………………………………………….……..",null,null,null,null,null,null,null,null,null,null,86,null,87,null,88,null,89,null,90,{"$f":"SUM(U46,W46)","v":0},null,null,null,null,"38 San Francisco",38]
[null,null,"7.  ","Cases discontinued during the month……………………………………………………………………………………………………………………………………………………………………………………………………………………………………………………………………………………………………………………………………………………………………………………………….………………………………………………………………………..",null,null,null,null,null,null,null,null,null,null,null,null,null,null,null,91,null,92,null,93,{"$f":"SUM(U47,W47)","v":0},null,null,null,null,"39 San Joaquin",39]
[null,null,null,"a.  ","Households discontinued due to recipient failure to complete application process for ongoing benefits (ES only)…………………………………………………………………………………………………………………………………………………………………………………………………………………………………………………………...…..",null,null,null,null,null,null,null,null,null,null,null,null,null,null,94,null,95,null,96,{"$f":"SUM(U48,W48)","v":0},null,null,null,null,"40 San Luis Obispo",40]
[null,null,"8.  ","Cases brought forward at the end of the month (Item 6 minus Item 7)…………………………………………………………………………………………………………………………………………………………………………………………………………………………………………………………………………………………………………………………………………………………………………………………………………………………..",null,null,null,null,null,null,null,null,null,null,null,null,null,null,null,97,{"$f":"U41-U47","v":0},98,{"$f":"W41-W47","v":0},99,{"$f":"SUM(W49,U49)","v":0},null,null,null,null,"41 San Mateo",41]
[null,null,"PART D.  RECERTIFICATIONS",null,null,null,null,null,null,null,null,null,null,null,null,null,null,null,null,"PACF (A)",null,"NACF (B)",null,"TOTAL (C)",null,null,null,null,null,"42 Santa Barbara",42]
[null,null,"9.","Recertifications disposed of during the month (Item 9a plus Item 9b)………………………………………………………………………………………………………………………",null,null,null,null,null,null,null,null,null,null,null,null,null,null,null,100,{"$f":"SUM(U54,U55)","v":0},101,{"$f":"SUM(W54,W55)","v":0},102,{"$f":"SUM(U51,W51)","v":0},null,null,null,null,"43 Santa Clara",43]
[null,null,null,null,null,null,null,"PACF",null,null,null,null,null,"NACF",null,null,null,null,null,null,null,null,null,null,null,null,null,null,null,"44 Santa Cruz",44]
[null,null,null,null,null,null,null,"Federal",null,"Fed/State",null,"State",null,"Federal",null,"Fed/State",null,"State",null,null,null,null,null,null,null,null,null,null,null,"45 Shasta",45]
[null,null,null,"a.","Determined continuing eligible………………………………………………………………………………………………………………………………………………………………………………………………………………………………………………………………………………………………………………………………………………………………………………………………………………………………………………………….…..",null,null,103,null,104,null,105,null,106,null,107,null,108,null,109,{"$f":"SUM(I54,K54,M54)","v":0},110,{"$f":"SUM(O54,Q54,S54)","v":0},111,{"$f":"SUM(U54,W54)","v":0},null,null,null,null,"46 Sierra",46]
[null,null,null,"b.","Determined ineligible………………………………………………………………………………………………………………………………………………………………………………………………………………………………………………………………………………………………………………………………………………………………………………………………………………………………………………………………………………………………………………………………………………………………………………………",null,null,112,null,113,null,114,null,115,null,116,null,117,null,118,{"$f":"SUM(I55,K55,M55)","v":0},119,{"$f":"SUM(O55,Q55,S55)","v":0},120,{"$f":"SUM(U55,W55)","v":0},null,null,null,null,"47 Siskiyou",47]
[null,null,"10.","Overdue recertifications (CWD caused) during the month…………………………………………………………………………………………………………………………………………………………………………………………",null,null,null,null,null,null,null,null,null,null,null,null,null,null,null,121,null,122,null,123,{"$f":"SUM(U56,W56)","v":0},null,null,null,null,"48 Solano",48]
[null,null,"COMMENTS",null,null,null,null,null,null,null,null,null,null,null,null,null,null,null,null,null,null,null,null,null,null,null,null,null,null,"49 Sonoma",49]
[null,null,"Item 4b PACF (A) Adjustment Explanation (If Item 4b is not zero, this box must be completed.  If Item 4b is zero, this box must be blank.)",null,null,null,null,null,null,null,null,null,null,"Item 4b NACF (B) Adjustment Explanation (If Item 4b is not zero, this box must be completed.  If Item 4b is zero, this box must be blank.)",null,null,null,null,null,null,null,null,null,null,null,null,null,null,null,"50 Stanislaus",50]
[null,null,null,null,null,null,null,null,null,null,null,null,null,null,null,null,null,null,null,null,null,null,null,null,null,null,null,null,null,"51 Sutter",51]
[null,null,"General Comments",null,null,null,null,null,null,null,null,null,null,null,null,null,null,null,null,null,null,null,null,null,null,null,null,null,null,"52 Tehama",52]
[null,null,null,null,null,null,null,null,null,null,null,null,null,null,null,null,null,null,null,null,null,null,null,null,null,null,null,null,null,"53 Trinity",53]
[null,null,"Revised Report Explanation (if \"Revised\" is selected above)",null,null,null,null,null,null,null,null,null,null,null,null,null,null,null,null,null,null,null,null,null,null,null,null,null,null,"54 Tulare",54]
[null,null,null,null,null,null,null,null,null,null,null,null,null,null,null,null,null,null,null,null,null,null,null,null,null,null,null,null,null,"55 Tuolumne",55]
[null,null,null,null,null,null,null,null,null,null,null,null,null,null,null,null,null,null,null,null,null,null,null,null,null,null,null,null,null,"56 Ventura",56]
[null,null,null,null,null,null,null,null,null,null,null,null,null,null,null,null,null,null,null,null,null,null,null,null,null,null,null,null,"COMMENTS BOX BELOW","57 Yolo",57]
[null,null,null,null,null,null,null,null,null,null,null,null,null,null,null,null,null,null,null,null,null,null,null,null,null,null,null,null,"","58 Yuba",58]
[null,null,null,null,null,null,null,null,null,null,null,null,null,null,null,null,null,null,null,null,null,null,null,null,null,null,null,null,null,"PROOF LINE",{"$f":"COUNT(AE9:AE66)","v":58}]

{"sheet":"ACL's","index":1,"n_rows":26,"n_cols":4,"rows_kept":26,"cut":false,"hidden":false,"merged":[[7,3,7,7],[3,2,3,11],[24,3,24,7],[25,3,25,13],[21,3,21,13],[19,3,19,7],[20,3,20,13],[5,2,5,10],[15,3,15,7],[16,3,16,13],[17,3,17,13],[12,3,12,7],[13,3,13,13],[8,3,8,13],[9,3,9,13],[10,3,10,13]]}
[]
[]
[]
[null,null,"All County Letters (ACL) Issued - CF 296"]
[]
[null,null,"Internet access is needed to use these links."]
[]
[null,null,null,"ACL 16-39 (May 4, 2016)"]
[null,null,null,"Discontinuance of CalFresh Expedited Service Quarterly Statisical Report (DFA 296X [7/13])"]
[null,null,null,"Discontinuance of CalFresh Monthly Caseload Movement Statistical Report (DFA 296 [1/12])"]
[null,null,null,"New CalFresh Monthly Caseload Movement Statistical Report (CF 296 [7/16])"]
[]
[null,null,null,"ACIN I-19-16 (March 3, 2016)"]
[null,null,null,"CalFresh Monthly Caseload Movement Statistical Report (New CF 296)"]
[]
[null,null,null,"ACL 12-09E (August 9, 2012)"]
[null,null,null,"Corrections to Revised CalFresh Monthly Caseload Movement Statistical Report [DFA 296 (1/12)] "]
[null,null,null,"Note:  Errata to form revision effective January 2012 report month."]
[]
[null,null,null,"ACL 12-09 (February 17, 2012)"]
[null,null,null,"Revised CalFresh Monthly Caseload Movement Statistical Report [DFA 296 (1/12)] "]
[null,null,null,"Note:  Form revision effective January 2012 report month."]
[]
[]
[null,null,null,"ACL 99-06 (January 25, 1999)"]
[null,null,null,"Expanded California Food Assistance Program (CFAP) Reporting."]

{"sheet":"Quick Links","index":2,"n_rows":42,"n_cols":6,"rows_kept":42,"cut":false,"hidden":false,"merged":[[4,2,5,13],[2,2,2,13],[3,2,3,13],[12,2,12,13],[16,2,16,13],[9,4,9,12],[6,4,6,12],[7,5,8,12],[41,5,41,12],[40,4,40,10],[36,4,36,9],[37,5,38,12],[10,5,11,12],[13,4,13,12],[32,4,32,9],[28,4,28,9],[23,2,23,13],[29,5,31,12],[33,5,35,12],[17,4,17,12],[18,5,22,12],[14,5,15,12],[25,5,27,12],[24,4,24,12]]}
[]
[]
[null,null,"Quick Links to CDSS Websites "]
[]
[null,null,"Internet access is needed to use these links."]
[]
[null,null,null,null,"California Department of Social Services (CDSS) - Home Page"]
[null,null,null,null,null,"CDSS website's Home Page.  This is an internet site."]
[]
[null,null,null,null,"Research and Data Reports (RADR) - Home Page"]
[null,null,null,null,null,"CDSS internet website that contains a variety of statistical report forms and instructions, published statistical reports (monthly, quarterly, semi-annual, and annual) and data trend charts."]
[]
[]
[null,null,null,null,"Data Systems and Survey Design Bureau (DSSDB) - Home Page"]
[null,null,null,null,null,"CDSS internet website dedicated for county and designated agency use only.  This site contains automated downloadable forms in Excel.  There are no links to this site from any CDSS web page.  "]
[]
[]
[null,null,null,null,"RADR Report Forms and Instructions"]
[null,null,null,null,null,"RADR web page that contains report forms and instructions used for statistical reporting.  These forms are in PDF format for reference purposes.  "]
[]
[]
[]
[]
[null,null,"Quick Links to CF 296 Monthly Statistical Reports \nand CalFresh Publications"]
[null,null,null,null,"CF 296 Report Form and Instructions, 07-16 (PDF Version)"]
[null,null,null,null,null,"RADR web page where you can download or print the official report and instructions for this report."]
[]
[]
[null,null,null,null,"RADR CalFresh Data Tables"]
[null,null,null,null,null,"Web page that lists CalFresh data table reports."]
[]
[]
[null,null,null,null,"RADR CalFresh Data Trends"]
[null,null,null,null,null,"Web page that shows trend charts involving past and current CalFresh statistical data collected \nfrom County Welfare Departments and state agencies. "]
[]
[]
[null,null,null,null,"RADR CalFresh Reports"]
[null,null,null,null,null,"Web page that presents research and analysis based on collected CalFresh statistical data from County Welfare Departments and state agencies. "]
[]
[]
[null,null,null,null,"CF 296 Released Reports (Excel)"]
[null,null,null,null,null,"Web page containing the monthly statewide released CF 296 statistical reports.  Reports from \nJuly 2016 to the most recent published reports are available."]

{"sheet":"CDSS USE ONLY","index":3,"n_rows":5,"n_cols":139,"rows_kept":5,"cut":false,"hidden":false,"merged":[]}
[]
[null,null,null,null,null,"PACF (A)","NACF (B)","TOTAL (C) ","PACF (A)","NACF (B)","TOTAL (C) ","PACF (A)","NACF (B)","TOTAL (C) ","PACF (A)","NACF (B)","TOTAL (C) ","PACF (A)","NACF (B)","TOTAL (C) ","PACF (A)","NACF (B)","TOTAL (C) ","PACF (A)","NACF (B)","TOTAL (C) ","PACF (A)","NACF (B)","TOTAL (C) ","PACF (A)","NACF (B)","TOTAL (C) ","PACF (A)","NACF (B)","TOTAL (C) ","PACF (A)","NACF (B)","TOTAL (C) ","PACF (A)","NACF (B)","TOTAL (C) ","PACF (A)","NACF (B)","TOTAL (C) ","PACF (A)","NACF (B)","TOTAL (C) ","PACF (A)","NACF (B)","TOTAL (C) ","PACF (A)","NACF (B)","TOTAL (C) ","PACF \nFederal","PACF \nFed/State","PACF \nState","NACF \nFederal","NACF \nFed/State","NACF \nState",null,null,null,"PACF (A)","NACF (B)","TOTAL (C) ","PACF (A)","NACF (B)","TOTAL (C) ","PACF (A)","NACF (B)","TOTAL (C) ","PACF (A)","NACF (B)","TOTAL (C) ","PACF (A)","NACF (B)","TOTAL (C) ","PACF (A)","NACF (B)","TOTAL (C) ",null,"State Persons - \nSingles","State Persons - \nFamilies",null,null,null,"State Persons - \nSingles","State Persons -\nFamilies",null,null,null,"PACF (A)","NACF (B)","TOTAL (C) ","PACF (A)","NACF (B)","TOTAL (C) ","PACF (A)","NACF (B)","TOTAL (C) ","PACF (A)","NACF (B)","TOTAL (C) ","PACF \nFederal","PACF \nFed/State","PACF \nState","NACF \nFederal","NACF \nFed/State","NACF \nState",null,null,null,"PACF \nFederal","PACF \nFed/State","PACF \nState","NACF \nFederal","NACF \nFed/State","NACF \nState",null,null,null,"PACF (A)","NACF (B)","TOTAL (C) "]
[null,"1. Applications received during the month","1a. Online applications received during the month","2. Applications disposed of during the month (Sum of Items 2a, 2b and 2c)","2a. Applications approved (Same as Item 5a/Cell 61) ","2a1. Applications approved in over 30 days (CWD caused) ","2a1. Applications approved in over 30 days (CWD caused) ","2a1. Applications approved in over 30 days (CWD caused) ","2b. Applications denied ","2b. Applications denied ","2b. Applications denied ","2b1. Applications denied because determined ineligible","2b1. Applications denied because determined ineligible","2b1. Applications denied because determined ineligible","2b2. Applications denied for procedural reasons","2b2. Applications denied for procedural reasons","2b2. Applications denied for procedural reasons","2b3. Applications denied in over 30 days (CWD caused)","2b3. Applications denied in over 30 days (CWD caused)","2b3. Applications denied in over 30 days (CWD caused)","2c. Applications withdrawn","2c. Applications withdrawn","2c. Applications withdrawn","3. Of the applications from Item 1, applications processed under ES disposed of during the month (Item 3a plus Item 3b)","3. Of the applications from Item 1, applications processed under ES disposed of during the month (Item 3a plus Item 3b)","3. Of the applications from Item 1, applications processed under ES disposed of during the month (Item 3a plus Item 3b)","3a.  Found entitled to ES (Sum of Items 3a1 through 3a3)","3a.  Found entitled to ES (Sum of Items 3a1 through 3a3)","3a.  Found entitled to ES (Sum of Items 3a1 through 3a3)","3a1. Benefits issued in 1-3 days","3a1. Benefits issued in 1-3 days","3a1. Benefits issued in 1-3 days","3a2. Benefits issued in 4-7 days","3a2. Benefits issued in 4-7 days","3a2. Benefits issued in 4-7 days","3a3. Benefits issued in over 7 days","3a3. Benefits issued in over 7 days","3a3. Benefits issued in over 7 days","3b. Found not entitled to ES","3b. Found not entitled to ES","3b. Found not entitled to ES","4. Cases brought forward at the beginning of the month","4. Cases brought forward at the beginning of the month","4. Cases brought forward at the beginning of the month","4a. Item 8 from last month's report, as reported to CDSS","4a. Item 8 from last month's report, as reported to CDSS","4a. Item 8 from last month's report, as reported to CDSS","4b. Adjustment (Item 4 minus Item 4a, positive or negative number, explain in the Item 4b Adjustment Explanation box)","4b. Adjustment (Item 4 minus Item 4a, positive or negative number, explain in the Item 4b Adjustment Explanation box)","4b. Adjustment (Item 4 minus Item 4a, positive or negative number, explain in the Item 4b Adjustment Explanation box)","5. Cases added during the month (Sum of Items 5a through 5e, positive or negative number)","5. Cases added during the month (Sum of Items 5a through 5e, positive or negative number)","5. Cases added during the month (Sum of Items 5a through 5e, positive or negative number)","5a. Applications approved","5a. Applications approved","5a. Applications approved","5a. Applications approved","5a. Applications approved","5a. Applications approved","5a. Applications approved","5a. Applications approved","5a. Applications approved","5b. Change in assistance status from PACF or NACF","5b. Change in assistance status from PACF or NACF","5b. Change in assistance status from PACF or NACF","5c. Inter-County Transfers ","5c. Inter-County Transfers ","5c. Inter-County Transfers ","5d. Cases with eligibility reinstated and benefits pro-rated during the month","5d. Cases with eligibility reinstated and benefits pro-rated during the month","5d. Cases with eligibility reinstated and benefits pro-rated during the month","5e. Other approvals","5e. Other approvals","5e. Other approvals","6. Total cases open during the month (Certified eligible to participate during the month) (Item 4 plus Item 5; also sum of Items 6a through 6c)","6. Total cases open during the month (Certified eligible to participate during the month) (Item 4 plus Item 5; also sum of Items 6a through 6c)","6. Total cases open during the month (Certified eligible to participate during the month) (Item 4 plus Item 5; also sum of Items 6a through 6c)","6a. Pure federal ","6a. Pure federal ","6a. Pure federal ","6a1. Federal persons in Item 6a cases plus federal persons in Item 6b ","6b. Federal/State combined cases","6b. Federal/State combined cases","6b. Federal/State combined cases","6b. Federal/State combined cases","6b. Federal/State combined cases","6c. Pure state cases","6c. Pure state cases","6c. Pure state cases","6c. Pure state cases","6c. Pure state cases","7. Cases discontinued during the month","7. Cases discontinued during the month","7. Cases discontinued during the month","7a. Households discontinued due to recipient failure to complete application process for ongoing benefits (ES only)","7a. Households discontinued due to recipient failure to complete application process for ongoing benefits (ES only)","7a. Households discontinued due to recipient failure to complete application process for ongoing benefits (ES only)","8. Cases brought forward at the end of the month (Item 6 minus Item 7)","8. Cases brought forward at the end of the month (Item 6 minus Item 7)","8. Cases brought forward at the end of the month (Item 6 minus Item 7)","9. Recertifications disposed of during the month (Item 9a plus Item 9b)","9. Recertifications disposed of during the month (Item 9a plus Item 9b)","9. Recertifications disposed of during the month (Item 9a plus Item 9b)","9a. Determined continuing eligible","9a. Determined continuing eligible","9a. Determined continuing eligible","9a. Determined continuing eligible","9a. Determined continuing eligible","9a. Determined continuing eligible","9a. Determined continuing eligible","9a. Determined continuing eligible","9a. Determined continuing eligible","9b. Determined ineligible","9b. Determined ineligible","9b. Determined ineligible","9b. Determined ineligible","9b. Determined ineligible","9b. Determined ineligible","9b. Determined ineligible","9b. Determined ineligible","9b. Determined ineligible","10. Overdue recertifications (CWD caused) during the month","10. Overdue recertifications (CWD caused) during the month","10. Overdue recertifications (CWD caused) during the month"," Contact Person"," Title/Classification"," E-mail"," Telephone"," Extension"," FAX"," Report Month"," Report Year"," Version"," Date Submitted"," Comments"," Item 4b PACF (A) Adjustment Explanation (If Item 4b is not zero, this box must be completed  If Item 4b is zero, this box must be blank)"," Item 4b NACF (B) Adjustment Explanation (If Item 4b is not zero, this box must be completed  If Item 4b is zero, this box must be blank)"," Revised Explanation\nRequired if radio button is checked Revised"," Electronic Form \nUpdated Date"]
["Data Cells",1,2,3,4,5,6,7,8,9,10,11,12,13,14,15,16,17,18,19,20,21,22,23,24,25,26,27,28,29,30,31,32,33,34,35,36,37,38,39,40,41,42,43,44,45,46,47,48,49,50,51,52,53,54,55,56,57,58,59,60,61,62,63,64,65,66,67,68,69,70,71,72,73,74,75,76,77,78,79,80,81,82,83,84,85,86,87,88,89,90,91,92,93,94,95,96,97,98,99,100,101,102,103,104,105,106,107,108,109,110,111,112,113,114,115,116,117,118,119,120,121,122,123]
[{"$f":"MID('Report Form'!$AC8,4,15)","v":"ect County Name"},{"$f":"IF('Report Form'!Y10=\"\",\"BLANK\",'Report Form'!Y10)","v":"BLANK"},{"$f":"IF('Report Form'!Y11=\"\",\"BLANK\",'Report Form'!Y11)","v":"BLANK"},{"$f":"IF('Report Form'!Y12=\"\",\"BLANK\",'Report Form'!Y12)","v":0},{"$f":"IF('Report Form'!Y13=\"\",\"BLANK\",'Report Form'!Y13)","v":"BLANK"},{"$f":"IF('Report Form'!U15=\"\",\"BLANK\",'Report Form'!U15)","v":"BLANK"},{"$f":"IF('Report Form'!W15=\"\",\"BLANK\",'Report Form'!W15)","v":"BLANK"},{"$f":"IF('Report Form'!Y15=\"\",\"BLANK\",'Report Form'!Y15)","v":0},{"$f":"IF('Report Form'!U16=\"\",\"BLANK\",'Report Form'!U16)","v":0},{"$f":"IF('Report Form'!W16=\"\",\"BLANK\",'Report Form'!W16)","v":0},{"$f":"IF('Report Form'!Y16=\"\",\"BLANK\",'Report Form'!Y16)","v":0},{"$f":"IF('Report Form'!U17=\"\",\"BLANK\",'Report Form'!U17)","v":"BLANK"},{"$f":"IF('Report Form'!W17=\"\",\"BLANK\",'Report Form'!W17)","v":"BLANK"},{"$f":"IF('Report Form'!Y17=\"\",\"BLANK\",'Report Form'!Y17)","v":0},{"$f":"IF('Report Form'!U18=\"\",\"BLANK\",'Report Form'!U18)","v":"BLANK"},{"$f":"IF('Report Form'!W18=\"\",\"BLANK\",'Report Form'!W18)","v":"BLANK"},{"$f":"IF('Report Form'!Y18=\"\",\"BLANK\",'Report Form'!Y18)","v":0},{"$f":"IF('Report Form'!U19=\"\",\"BLANK\",'Report Form'!U19)","v":"BLANK"},{"$f":"IF('Report Form'!W19=\"\",\"BLANK\",'Report Form'!W19)","v":"BLANK"},{"$f":"IF('Report Form'!Y19=\"\",\"BLANK\",'Report Form'!Y19)","v":0},{"$f":"IF('Report Form'!U20=\"\",\"BLANK\",'Report Form'!U20)","v":"BLANK"},{"$f":"IF('Report Form'!W20=\"\",\"BLANK\",'Report Form'!W20)","v":"BLANK"},{"$f":"IF('Report Form'!Y20=\"\",\"BLANK\",'Report Form'!Y20)","v":0},{"$f":"IF('Report Form'!U22=\"\",\"BLANK\",'Report Form'!U22)","v":0},{"$f":"IF('Report Form'!W22=\"\",\"BLANK\",'Report Form'!W22)","v":0},{"$f":"IF('Report Form'!Y22=\"\",\"BLANK\",'Report Form'!Y22)","v":0},{"$f":"IF('Report Form'!U23=\"\",\"BLANK\",'Report Form'!U23)","v":0},{"$f":"IF('Report Form'!W23=\"\",\"BLANK\",'Report Form'!W23)","v":0},{"$f":"IF('Report Form'!Y23=\"\",\"BLANK\",'Report Form'!Y23)","v":0},{"$f":"IF('Report Form'!U24=\"\",\"BLANK\",'Report Form'!U24)","v":"BLANK"},{"$f":"IF('Report Form'!W24=\"\",\"BLANK\",'Report Form'!W24)","v":"BLANK"},{"$f":"IF('Report Form'!Y24=\"\",\"BLANK\",'Report Form'!Y24)","v":0},{"$f":"IF('Report Form'!U25=\"\",\"BLANK\",'Report Form'!U25)","v":"BLANK"},{"$f":"IF('Report Form'!W25=\"\",\"BLANK\",'Report Form'!W25)","v":"BLANK"},{"$f":"IF('Report Form'!Y25=\"\",\"BLANK\",'Report Form'!Y25)","v":0},{"$f":"IF('Report Form'!U26=\"\",\"BLANK\",'Report Form'!U26)","v":"BLANK"},{"$f":"IF('Report Form'!W26=\"\",\"BLANK\",'Report Form'!W26)","v":"BLANK"},{"$f":"IF('Report Form'!Y26=\"\",\"BLANK\",'Report Form'!Y26)","v":0},{"$f":"IF('Report Form'!U27=\"\",\"BLANK\",'Report Form'!U27)","v":"BLANK"},{"$f":"IF('Report Form'!W27=\"\",\"BLANK\",'Report Form'!W27)","v":"BLANK"},{"$f":"IF('Report Form'!Y27=\"\",\"BLANK\",'Report Form'!Y27)","v":0},{"$f":"IF('Report Form'!U29=\"\",\"BLANK\",'Report Form'!U29)","v":"BLANK"},{"$f":"IF('Report Form'!W29=\"\",\"BLANK\",'Report Form'!W29)","v":"BLANK"},{"$f":"IF('Report Form'!Y29=\"\",\"BLANK\",'Report Form'!Y29)","v":0},{"$f":"IF('Report Form'!U30=\"\",\"BLANK\",'Report Form'!U30)","v":"BLANK"},{"$f":"IF('Report Form'!W30=\"\",\"BLANK\",'Report Form'!W30)","v":"BLANK"},{"$f":"IF('Report Form'!Y30=\"\",\"BLANK\",'Report Form'!Y30)","v":0},{"$f":"IF('Report Form'!U31=\"\",\"BLANK\",'Report Form'!U31)","v":0},{"$f":"IF('Report Form'!W31=\"\",\"BLANK\",'Report Form'!W31)","v":0},{"$f":"IF('Report Form'!Y31=\"\",\"BLANK\",'Report Form'!Y31)","v":0},{"$f":"IF('Report Form'!U32=\"\",\"BLANK\",'Report Form'!U32)","v":0},{"$f":"IF('Report Form'!W32=\"\",\"BLANK\",'Report Form'!W32)","v":0},{"$f":"IF('Report Form'!Y32=\"\",\"BLANK\",'Report Form'!Y32)","v":0},{"$f":"IF('Report Form'!I35=\"\",\"BLANK\",'Report Form'!I35)","v":"BLANK"},{"$f":"IF('Report Form'!K35=\"\",\"BLANK\",'Report Form'!K35)","v":"BLANK"},{"$f":"IF('Report Form'!M35=\"\",\"BLANK\",'Report Form'!M35)","v":"BLANK"},{"$f":"IF('Report Form'!O35=\"\",\"BLANK\",'Report Form'!O35)","v":"BLANK"},{"$f":"IF('Report Form'!Q35=\"\",\"BLANK\",'Report Form'!Q35)","v":"BLANK"},{"$f":"IF('Report Form'!S35=\"\",\"BLANK\",'Report Form'!S35)","v":"BLANK"},{"$f":"IF('Report Form'!U35=\"\",\"BLANK\",'Report Form'!U35)","v":0},{"$f":"IF('Report Form'!W35=\"\",\"BLANK\",'Report Form'!W35)","v":0},{"$f":"IF('Report Form'!Y35=\"\",\"BLANK\",'Report Form'!Y35)","v":0},{"$f":"IF('Report Form'!U36=\"\",\"BLANK\",'Report Form'!U36)","v":"BLANK"},{"$f":"IF('Report Form'!W36=\"\",\"BLANK\",'Report Form'!W36)","v":"BLANK"},{"$f":"IF('Report Form'!Y36=\"\",\"BLANK\",'Report Form'!Y36)","v":0},{"$f":"IF('Report Form'!U37=\"\",\"BLANK\",'Report Form'!U37)","v":"BLANK"},{"$f":"IF('Report Form'!W37=\"\",\"BLANK\",'Report Form'!W37)","v":"BLANK"},{"$f":"IF('Report Form'!Y37=\"\",\"BLANK\",'Report Form'!Y37)","v":0},{"$f":"IF('Report Form'!U38=\"\",\"BLANK\",'Report Form'!U38)","v":"BLANK"},{"$f":"IF('Report Form'!W38=\"\",\"BLANK\",'Report Form'!W38)","v":"BLANK"},{"$f":"IF('Report Form'!Y38=\"\",\"BLANK\",'Report Form'!Y38)","v":0},{"$f":"IF('Report Form'!U39=\"\",\"BLANK\",'Report Form'!U39)","v":"BLANK"},{"$f":"IF('Report Form'!W39=\"\",\"BLANK\",'Report Form'!W39)","v":"BLANK"},{"$f":"IF('Report Form'!Y39=\"\",\"BLANK\",'Report Form'!Y39)","v":0},{"$f":"IF('Report Form'!U41=\"\",\"BLANK\",'Report Form'!U41)","v":0},{"$f":"IF('Report Form'!W41=\"\",\"BLANK\",'Report Form'!W41)","v":0},{"$f":"IF('Report Form'!Y41=\"\",\"BLANK\",'Report Form'!Y41)","v":0},{"$f":"IF('Report Form'!U42=\"\",\"BLANK\",'Report Form'!U42)","v":"BLANK"},{"$f":"IF('Report Form'!W42=\"\",\"BLANK\",'Report Form'!W42)","v":"BLANK"},{"$f":"IF('Report Form'!Y42=\"\",\"BLANK\",'Report Form'!Y42)","v":0},{"$f":"IF('Report Form'!O44=\"\",\"BLANK\",'Report Form'!O44)","v":"BLANK"},{"$f":"IF('Report Form'!Q45=\"\",\"BLANK\",'Report Form'!Q45)","v":"BLANK"},{"$f":"IF('Report Form'!S45=\"\",\"BLANK\",'Report Form'!S45)","v":"BLANK"},{"$f":"IF('Report Form'!U45=\"\",\"BLANK\",'Report Form'!U45)","v":"BLANK"},{"$f":"IF('Report Form'!W45=\"\",\"BLANK\",'Report Form'!W45)","v":"BLANK"},{"$f":"IF('Report Form'!Y45=\"\",\"BLANK\",'Report Form'!Y45)","v":0},{"$f":"IF('Report Form'!Q46=\"\",\"BLANK\",'Report Form'!Q46)","v":"BLANK"},{"$f":"IF('Report Form'!S46=\"\",\"BLANK\",'Report Form'!S46)","v":"BLANK"},{"$f":"IF('Report Form'!U46=\"\",\"BLANK\",'Report Form'!U46)","v":"BLANK"},{"$f":"IF('Report Form'!W46=\"\",\"BLANK\",'Report Form'!W46)","v":"BLANK"},{"$f":"IF('Report Form'!Y46=\"\",\"BLANK\",'Report Form'!Y46)","v":0},{"$f":"IF('Report Form'!U47=\"\",\"BLANK\",'Report Form'!U47)","v":"BLANK"},{"$f":"IF('Report Form'!W47=\"\",\"BLANK\",'Report Form'!W47)","v":"BLANK"},{"$f":"IF('Report Form'!Y47=\"\",\"BLANK\",'Report Form'!Y47)","v":0},{"$f":"IF('Report Form'!U48=\"\",\"BLANK\",'Report Form'!U48)","v":"BLANK"},{"$f":"IF('Report Form'!W48=\"\",\"BLANK\",'Report Form'!W48)","v":"BLANK"},{"$f":"IF('Report Form'!Y48=\"\",\"BLANK\",'Report Form'!Y48)","v":0},{"$f":"IF('Report Form'!U49=\"\",\"BLANK\",'Report Form'!U49)","v":0},{"$f":"IF('Report Form'!W49=\"\",\"BLANK\",'Report Form'!W49)","v":0},{"$f":"IF('Report Form'!Y49=\"\",\"BLANK\",'Report Form'!Y49)","v":0},{"$f":"IF('Report Form'!U51=\"\",\"BLANK\",'Report Form'!U51)","v":0},{"$f":"IF('Report Form'!W51=\"\",\"BLANK\",'Report Form'!W51)","v":0},{"$f":"IF('Report Form'!Y51=\"\",\"BLANK\",'Report Form'!Y51)","v":0},{"$f":"IF('Report Form'!I54=\"\",\"BLANK\",'Report Form'!I54)","v":"BLANK"},{"$f":"IF('Report Form'!K54=\"\",\"BLANK\",'Report Form'!K54)","v":"BLANK"},{"$f":"IF('Report Form'!M54=\"\",\"BLANK\",'Report Form'!M54)","v":"BLANK"},{"$f":"IF('Report Form'!O54=\"\",\"BLANK\",'Report Form'!O54)","v":"BLANK"},{"$f":"IF('Report Form'!Q54=\"\",\"BLANK\",'Report Form'!Q54)","v":"BLANK"},{"$f":"IF('Report Form'!S54=\"\",\"BLANK\",'Report Form'!S54)","v":"BLANK"},{"$f":"IF('Report Form'!U54=\"\",\"BLANK\",'Report Form'!U54)","v":0},{"$f":"IF('Report Form'!W54=\"\",\"BLANK\",'Report Form'!W54)","v":0},{"$f":"IF('Report Form'!Y54=\"\",\"BLANK\",'Report Form'!Y54)","v":0},{"$f":"IF('Report Form'!I55=\"\",\"BLANK\",'Report Form'!I55)","v":"BLANK"},{"$f":"IF('Report Form'!K55=\"\",\"BLANK\",'Report Form'!K55)","v":"BLANK"},{"$f":"IF('Report Form'!M55=\"\",\"BLANK\",'Report Form'!M55)","v":"BLANK"},{"$f":"IF('Report Form'!O55=\"\",\"BLANK\",'Report Form'!O55)","v":"BLANK"},{"$f":"IF('Report Form'!Q55=\"\",\"BLANK\",'Report Form'!Q55)","v":"BLANK"},{"$f":"IF('Report Form'!S55=\"\",\"BLANK\",'Report Form'!S55)","v":"BLANK"},{"$f":"IF('Report Form'!U55=\"\",\"BLANK\",'Report Form'!U55)","v":0},{"$f":"IF('Report Form'!W55=\"\",\"BLANK\",'Report Form'!W55)","v":0},{"$f":"IF('Report Form'!Y55=\"\",\"BLANK\",'Report Form'!Y55)","v":0},{"$f":"IF('Report Form'!U56=\"\",\"BLANK\",'Report Form'!U56)","v":"BLANK"},{"$f":"IF('Report Form'!W56=\"\",\"BLANK\",'Report Form'!W56)","v":"BLANK"},{"$f":"IF('Report Form'!Y56=\"\",\"BLANK\",'Report Form'!Y56)","v":0},{"$f":"IF('Report Form'!C64=\"\",\"BLANK\",'Report Form'!C64)","v":"BLANK"},{"$f":"IF('Report Form'!C65=\"\",\"BLANK\",'Report Form'!C65)","v":"BLANK"},{"$f":"IF('Report Form'!K65=\"\",\"BLANK\",'Report Form'!K65)","v":"BLANK"},{"$f":"IF('Report Form'!K64=\"\",\"BLANK\",'Report Form'!K64)","v":"BLANK"},{"$f":"'Report Form'!Q64","v":0},{"$f":"'Report Form'!T64","v":0},{"$f":"IF('Report Form'!AC10=\"\",\"BLANK\",'Report Form'!AC10)","v":"Report Month"},{"$f":"IF('Report Form'!AC11=\"\",\"BLANK\",'Report Form'!AC11)","v":"Report Year"},{"$f":"IF('Report Form'!AC9=\"\",\"BLANK\",'Report Form'!AC9)","v":"Initial"},{"$f":"IF('Report Form'!T65=\"\",\"BLANK\",'Report Form'!T65)","v":"BLANK"},{"$f":"'Report Form'!C61","v":0},{"$f":"'Report Form'!C59","v":0},{"$f":"'Report Form'!N59","v":0},{"$f":"'Report Form'!C63","v":0},"10/11/16"]